bitfinex/quotes_ETHUSD_20250904
["timestamp","ask_amount","ask_price","bid_price","bid_amount"]
[1756994280226,8.12029575,4387.9,4387.1,0.004]
[1756994280227,2.27931807,4387.3,4387.1,0.004]
[1756994280451,0.1136,4387.2,4387.1,0.954]
[1756994280756,4.1206,4387.2,4387.1,0.954]
[1756994280960,4.8111,4387.2,4387.1,0.004]
[1756994281157,9.28061409,4387.2,4387.1,0.004]
[1756994281373,9.44521409,4387.2,4387.1,0.004]
[1756994282067,2.279514,4386.9,4386.8,0.029]
[1756994282285,2.27956597,4386.8,4386.7,0.004]
[1756994282463,2.37986597,4386.8,4386.7,0.004]
[1756994282778,1.157038,4386.8,4386.7,0.004]
[1756994283077,4.9757,4386.8,4386.7,0.004]
[1756994283273,7.25526597,4386.8,4386.7,0.004]
[1756994283484,7.09126597,4386.8,4386.7,0.004]
[1756994285657,6.97766597,4386.8,4386.7,0.004]
[1756994287605,24.05621906,4386.8,4386.7,0.004]
[1756994287899,26.32412703,4386.8,4386.7,0.004]
[1756994288293,9.24557394,4386.8,4386.7,0.004]
[1756994288482,8.55447394,4386.8,4386.7,0.004]
[1756994289071,6.27490797,4386.8,4386.7,0.004]
[1756994289270,8.55447394,4386.8,4386.7,0.004]
[1756994289874,6.27490797,4386.8,4386.7,0.776]
[1756994290076,8.55447394,4386.8,4386.7,0.776]
[1756994290276,2.26790797,4386.8,4386.7,0.776]
[1756994290491,4.007,4386.8,4386.7,0.776]
[1756994291286,6.97636597,4386.8,4386.7,0.004]
[1756994291486,20.10271009,4386.8,4386.7,0.004]
[1756994292411,2.3705788,4387.5,4386.7,0.3012]
[1756994292412,0.09137208,4387.5,4386.7,0.3012]
[1756994292615,3.0,4387.3,4386.7,0.3012]
[1756994292809,3.0,4387.1,4386.7,0.3012]
[1756994292989,2.27956271,4386.9,4386.7,0.004]
[1756994293174,2.27956597,4386.8,4386.7,0.004]
[1756994293376,0.5908,4386.9,4386.7,0.004]
[1756994293582,4.007,4387.0,4386.7,0.776]
[1756994293895,0.47077,4387.0,4386.8,0.4748]
[1756994294238,4.007,4386.9,4386.7,0.004]
[1756994294383,3.28694644,4387.9,4386.9,2.57670882]
[1756994294579,2.27913526,4387.7,4387.0,0.4748]
[1756994294816,0.55660817,4387.6,4387.0,2.75425404]
[1756994295033,0.55660817,4387.6,4387.2,0.95]
[1756994295233,0.55660817,4387.6,4387.5,0.2972]
[1756994295505,4.007,4387.6,4387.5,3.61485668]
[1756994295711,0.025,4388.8,4387.8,0.95]
[1756994295891,0.1136,4387.9,4387.8,0.95]
[1756994296092,4.1206,4387.9,4387.8,1.8109]
[1756994296512,4.1206,4387.9,4387.8,1.722]
[1756994296681,4.53266,4387.9,4387.8,1.722]
[1756994297607,4.53266,4387.9,4386.8,0.95]
[1756994297608,2.27933765,4387.3,4386.8,0.95]
[1756994297791,4.007,4387.2,4386.8,0.95]
[1756994298094,0.1136,4386.9,4386.8,0.95]
[1756994298616,0.1136,4386.9,4386.8,1.722]
[1756994298995,0.1128,4386.9,4386.8,1.722]
[1756994300686,0.1128,4386.9,4386.8,0.975]
[1756994300920,2.804294,4386.9,4386.8,0.025]
[1756994301232,0.52478,4386.9,4386.8,0.025]
[1756994301722,2.903294,4386.9,4386.8,0.025]
[1756994301921,3.494094,4386.9,4386.8,0.025]
[1756994305453,0.52478,4386.9,4386.8,0.797]
[1756994305754,4.1188,4386.9,4386.8,0.797]
[1756994307927,7.252414,4386.9,4386.8,0.025]
[1756994308334,7.255014,4386.9,4386.8,0.025]
[1756994308531,5.983114,4386.9,4386.8,0.025]
[1756994308735,6.548814,4386.9,4386.8,0.025]
[1756994308937,8.02243674,4386.9,4386.8,0.025]
[1756994310348,11.02503674,4386.9,4386.8,0.025]
[1756994313155,10.98623674,4386.9,4386.8,0.025]
[1756994314255,10.98883674,4386.9,4386.8,0.025]
[1756994315962,10.98623674,4386.9,4386.8,0.025]
[1756994316364,10.98883674,4386.9,4386.8,0.025]
[1756994316556,10.98883674,4386.9,4386.8,0.029]
[1756994316758,10.98723674,4386.9,4386.8,0.029]
[1756994317342,10.98983674,4386.9,4386.8,0.029]
[1756994317742,5.27956597,4386.8,4386.6,1e-08]
[1756994317938,10.3846068,4386.7,4386.6,1e-08]
[1756994318142,11.2051068,4386.7,4386.6,1e-08]
[1756994319063,11.3135068,4386.7,4386.6,1e-08]
[1756994319771,11.3187068,4386.7,4386.6,1e-08]
[1756994320097,3.792,4386.6,4384.3,1.0263]
[1756994320249,2.28055371,4384.9,4384.3,0.4479]
[1756994320448,9.28655371,4384.9,4384.3,0.4479]
[1756994321356,9.38555371,4384.9,4384.3,0.4479]
[1756994321566,9.50155218,4384.9,4384.3,0.4479]
[1756994321752,10.58075559,4384.9,4384.3,0.4479]
[1756994322577,10.46475712,4384.9,4384.8,0.7805]
[1756994323385,0.5546,4385.8,4384.8,0.7805]
[1756994323588,0.11690739,4385.8,4384.9,0.4479]
[1756994323823,2.28020533,4385.6,4384.9,0.4479]
[1756994324096,6.28724766,4385.5,4385.0,0.5784]
[1756994324255,4.007,4385.4,4385.3,0.95]
[1756994324450,4.0062,4385.4,4385.3,0.95]
[1756994324649,4.0062,4385.4,4385.3,1.2576]
[1756994324846,6.2864937,4385.4,4385.3,0.7555]
[1756994325093,7.1431642,4385.4,4385.3,0.7555]
[1756994326684,4.8628705,4385.4,4385.3,0.7555]
[1756994326858,6.2864937,4385.4,4385.3,0.7555]
[1756994328852,4.0062,4385.4,4384.8,0.025]
[1756994329055,2.28055371,4384.9,4384.8,0.4729]
[1756994329388,4.006,4384.9,4384.8,2.3089]
[1756994329583,0.5546,4386.5,4384.8,2.3089]
[1756994329771,5.27992977,4386.1,4384.9,0.4479]
[1756994330091,0.5546,4386.5,4384.9,0.4479]
[1756994330092,3.0,4385.9,4385.1,0.95]
[1756994330279,2.2802937,4385.4,4385.2,0.4479]
[1756994330472,2.2802937,4385.4,4385.3,0.7555]
[1756994330676,4.006,4385.4,4385.3,0.7555]
[1756994330872,4.006,4385.4,4385.3,1.3339]
[1756994330873,6.2862937,4385.4,4385.3,1.3339]
[1756994331057,6.2862937,4385.4,4385.3,0.7555]
[1756994331254,6.4006937,4385.4,4385.3,0.7555]
[1756994331667,7.26878427,4385.4,4385.3,0.7555]
[1756994331868,2.28050171,4385.0,4384.9,0.4479]
[1756994332063,6.40090171,4385.0,4384.9,0.95]
[1756994332275,6.40090171,4385.0,4384.9,0.3076]
[1756994332486,4.1204,4385.0,4384.9,1.836]
[1756994332696,4.1204,4385.0,4384.9,2.2839]
[1756994333165,4.1204,4385.0,4384.9,4.56445371]
[1756994333567,4.1204,4385.0,4384.9,2.2839]
[1756994334184,4.1204,4385.0,4384.9,0.7555]
[1756994334576,4.76048407,4385.0,4384.8,0.025]
[1756994334776,7.04099744,4385.0,4384.9,0.7555]
[1756994335086,6.40090171,4385.0,4384.9,0.7555]
[1756994335474,6.40090171,4385.0,4384.9,1.7055]
[1756994335796,4.1204,4385.0,4384.9,1.7055]
[1756994335992,6.40090171,4385.0,4384.9,0.7555]
[1756994336563,6.40090171,4385.0,4384.8,0.029]
[1756994336564,2.28055371,4384.9,4384.8,0.029]
[1756994338769,2.28055371,4384.9,4384.8,0.3366]
[1756994339203,2.28055371,4384.9,4384.8,1.3629]
[1756994339204,4.1204,4384.9,4384.8,1.3629]
[1756994340610,9.40095371,4384.9,4384.8,0.029]
[1756994343174,7.1204,4384.9,4384.8,0.029]
[1756994343408,10.16814371,4384.9,4384.8,0.334]
[1756994343709,0.001,4385.4,4385.3,0.95]
[1756994343909,0.001,4385.4,4385.1,2.2804375]
[1756994344209,0.001,4385.4,4385.3,0.95]
[1756994344405,4.006,4385.4,4385.3,1.255]
[1756994344607,4.006,4385.4,4385.3,1.6832]
[1756994344813,4.006,4385.4,4385.3,2.2445]
[1756994347390,4.006,4385.4,4385.3,4.5248457]
[1756994348098,4.006,4385.4,4385.3,2.2445]
[1756994349319,4.006,4385.4,4385.3,4.5248457]
[1756994349695,0.001,4385.4,4385.3,4.5248457]
[1756994349915,0.0002,4385.4,4385.3,4.5248457]
[1756994350319,0.0002,4385.4,4385.3,2.2445]
[1756994350522,0.0002,4385.4,4385.3,4.5248457]
[1756994353344,0.0002,4385.4,4385.3,1.255]
[1756994353502,0.0002,4385.4,4385.3,1.6832]
[1756994353705,0.1146,4385.4,4385.3,1.6832]
[1756994354506,0.1146,4385.4,4385.3,0.7332]
[1756994354707,0.1146,4385.4,4385.3,1.6832]
[1756994356900,0.3779,4385.4,4385.1,0.95]
[1756994357099,0.1144,4385.0,4384.8,0.029]
[1756994357524,0.1144,4385.0,4384.9,0.7332]
[1756994358045,0.1144,4385.1,4385.0,0.95]
[1756994358202,0.1144,4385.1,4384.9,0.95]
[1756994358533,0.1144,4385.1,4385.0,0.7332]
[1756994360717,0.1144,4385.1,4384.9,0.95]
[1756994361117,0.1144,4385.1,4384.9,1.3782]
[1756994361317,0.1144,4385.1,4385.0,0.7332]
[1756994366230,0.1144,4385.1,4385.0,0.305]
[1756994366437,0.1144,4385.1,4385.0,1.6832]
[1756994367924,0.1144,4385.1,4385.0,2.2445]
[1756994368129,0.1144,4385.1,4385.0,4.98040978]
[1756994368325,0.1144,4385.1,4385.0,4.52500171]
[1756994368944,0.1144,4385.1,4385.0,2.2445]
[1756994369255,0.1144,4385.1,4385.0,1.6832]
[1756994369440,0.1144,4385.1,4385.0,1.255]
[1756994369641,0.2134,4385.1,4385.0,0.95]
[1756994369850,2.73334455,4385.1,4384.8,0.029]
[1756994370044,0.35389052,4385.1,4385.0,0.95]
[1756994370251,0.1144,4385.1,4385.0,1.2561]
[1756994370577,2.2804937,4385.4,4385.3,0.95]
[1756994370734,0.1146,4385.4,4385.3,0.95]
[1756994371948,2.3948937,4385.4,4385.3,0.95]
[1756994372153,0.1146,4385.4,4385.3,0.95]
[1756994373162,0.1146,4385.4,4385.3,1.2561]
[1756994373326,0.34206283,4385.4,4385.3,0.95]
[1756994374171,0.1146,4385.4,4385.3,0.95]
[1756994375147,0.1146,4385.4,4385.3,1.2561]
[1756994375456,0.1138,4385.4,4385.3,1.2561]
[1756994375631,0.1138,4385.4,4385.3,1.7064]
[1756994376961,4.002,4385.8,4385.7,0.95]
[1756994377150,0.1144,4385.8,4385.7,1.7064]
[1756994378061,0.1144,4385.8,4385.7,1.2561]
[1756994378926,0.1144,4385.8,4385.7,4.55063772]
[1756994379539,0.1144,4385.8,4385.7,2.2705]
[1756994379741,0.2134,4385.8,4385.7,0.95]
[1756994380031,0.1144,4385.8,4385.7,1.7064]
[1756994383361,0.1144,4385.8,4385.7,2.2705]
[1756994384042,0.1144,4385.8,4385.7,1.7064]
[1756994384683,0.1144,4385.8,4385.7,3.98653772]
[1756994384850,0.1144,4385.8,4385.7,4.94929149]
[1756994385180,0.1144,4385.8,4385.7,2.66915377]
[1756994385939,0.1144,4385.8,4385.7,1.7064]
[1756994387773,0.001,4385.9,4385.8,2.28008573]
[1756994387971,0.001,4385.9,4385.8,2.73038573]
[1756994388272,0.001,4385.9,4385.8,3.60058573]
[1756994389447,0.001,4385.9,4385.8,0.3061]
[1756994389759,0.001,4385.9,4385.8,3.03648573]
[1756994390138,0.001,4385.9,4385.8,0.7564]
[1756994390563,0.001,4385.9,4385.8,3.03648573]
[1756994390744,0.001,4385.9,4385.8,0.7564]
[1756994391043,0.001,4385.9,4385.8,3.03648573]
[1756994391442,0.001,4385.9,4385.8,3.60058573]
[1756994392871,0.001,4385.9,4385.8,4.30646385]
[1756994393064,0.001,4385.9,4385.8,4.283663]
[1756994393777,0.2643,4385.9,4385.6,2.28018616]
[1756994393990,0.001,4385.9,4385.8,3.23008573]
[1756994394148,0.1154,4385.9,4385.8,3.98648573]
[1756994394766,0.2144,4385.9,4385.8,0.95]
[1756994394974,0.7427,4385.9,4385.3,0.004]
[1756994395192,0.1144,4385.4,4385.3,0.004]
[1756994395480,2.28096986,4384.1,4383.9,0.004]
[1756994395683,0.22809699,4384.0,4383.9,0.004]
[1756994395882,1.43,4385.4,4383.9,0.004]
[1756994395883,3.995,4384.5,4384.4,0.942]
[1756994396057,3.07236177,4384.5,4384.4,0.942]
[1756994396377,2.28086454,4384.4,4383.9,0.004]
[1756994396579,0.1144,4384.0,4383.9,0.004]
[1756994398378,0.1144,4384.0,4383.9,0.946]
[1756994398772,0.1144,4384.0,4383.9,0.004]
[1756994399281,0.1144,4384.0,4383.9,4.54757392]
[1756994399480,0.1144,4384.2,4384.1,0.942]
[1756994399786,0.17944272,4384.6,4384.1,1.6984]
[1756994399961,0.17944272,4384.6,4384.5,0.942]
[1756994400286,0.2134,4384.2,4383.9,0.004]
[1756994400704,2.28102189,4384.0,4383.9,0.004]
[1756994400858,9.27522189,4384.0,4383.9,0.004]
[1756994401053,9.27522189,4384.0,4383.3,0.004]
[1756994401054,3.792,4383.9,4383.3,0.004]
[1756994401354,0.792,4383.6,4382.5,0.946]
[1756994401581,2.38189437,4382.9,4382.5,0.946]
[1756994401786,6.84323561,4382.9,4382.5,0.946]
[1756994402002,6.84323561,4382.9,4381.8,0.025]
[1756994402003,2.28195883,4382.2,4381.8,0.025]
[1756994402157,2.28195883,4382.2,4379.5,0.68591104]
[1756994402158,2.28195883,4382.2,4380.3,0.7804]
[1756994402159,0.792,4381.3,4380.3,0.7804]
[1756994402481,0.792,4381.3,4375.6,0.0143025]
[1756994402482,2.28331354,4379.6,4376.8,0.5842]
[1756994402659,2.28420018,4377.9,4377.1,0.7804]
[1756994402861,3.805,4377.9,4377.1,0.7804]
[1756994403090,4.013,4378.9,4378.8,0.29804744]
[1756994403256,2.28266699,4380.9,4378.8,0.29804744]
[1756994403257,0.3079,4380.8,4379.1,0.29804744]
[1756994403584,2.28336009,4379.6,4378.9,0.29804744]
[1756994403762,4.813,4380.7,4378.6,0.4303]
[1756994403763,4.023,4379.8,4379.6,0.29804744]
[1756994403969,0.792,4381.3,4379.1,0.29804744]
[1756994404277,3.0,4380.6,4378.6,0.5592]
[1756994404461,3.0,4381.4,4379.8,0.29804744]
[1756994404654,2.74794544,4382.9,4380.2,0.29804744]
[1756994404655,0.3079,4381.3,4380.2,0.29804744]
[1756994404959,0.6866332,4381.2,4381.1,0.29804744]
[1756994405163,5.254,4383.4,4381.6,0.29804744]
[1756994405164,0.839,4382.1,4381.6,0.29804744]
[1756994405483,3.7170177,4382.2,4380.5,0.4303]
[1756994405688,3.031,4382.1,4381.8,0.29804744]
[1756994405885,3.40270177,4382.1,4381.4,0.29804744]
[1756994406179,3.40270177,4382.1,4381.8,0.29804744]
[1756994406385,0.37170177,4382.1,4381.8,0.29804744]
[1756994406585,0.37170177,4382.1,4381.3,2.28242186]
[1756994406586,0.6860177,4382.2,4382.1,0.29804744]
[1756994406887,0.6860177,4382.2,4382.0,0.2915]
[1756994406888,4.028,4383.0,4382.0,0.29804744]
[1756994407193,0.4303,4382.5,4382.4,0.29804744]
[1756994407374,4.028,4383.0,4382.1,2.28200919]
[1756994407575,1.08870007,4382.9,4382.6,0.29804744]
[1756994407755,5.254,4383.4,4382.9,0.29804744]
[1756994407951,5.255,4385.0,4383.1,2.2814538]
[1756994408282,5.255,4385.0,4383.2,0.29804744]
[1756994408283,2.133,4384.7,4383.2,0.29804744]
[1756994408484,2.133,4384.7,4381.7,5.319]
[1756994408485,0.3079,4383.9,4383.7,0.29804744]
[1756994408666,4.029,4384.0,4383.7,0.29804744]
[1756994409174,0.025,4383.8,4383.7,0.29804744]
[1756994409650,0.025,4383.8,4383.7,0.72834744]
[1756994409854,0.025,4383.8,4383.7,1.28754744]
[1756994410385,0.025,4383.8,4383.1,0.5592]
[1756994410564,0.025,4383.8,4383.7,1.01984744]
[1756994410766,0.025,4383.8,4383.1,0.5592]
[1756994410767,0.4302,4383.8,4383.1,0.5592]
[1756994410968,0.4302,4383.8,4383.7,0.29804744]
[1756994411183,0.1144,4383.2,4383.1,0.5592]
[1756994411362,0.1144,4383.2,4383.1,0.8507]
[1756994411571,0.1144,4383.2,4383.1,3.4302377]
[1756994411759,0.1144,4383.2,4383.1,3.8605377]
[1756994412159,0.1144,4383.4,4383.3,2.2813421]
[1756994412368,0.025,4383.8,4383.7,2.281178]
[1756994412575,0.025,4383.8,4383.7,2.57922544]
[1756994412761,0.025,4383.8,4383.7,3.86022544]
[1756994413090,0.025,4383.8,4383.1,0.6736]
[1756994413282,0.025,4383.8,4383.7,0.29804744]
[1756994413786,0.1394,4383.8,4383.7,0.29804744]
[1756994414094,0.1394,4383.8,4383.7,0.72834744]
[1756994414297,4.047,4383.8,4383.3,0.29804744]
[1756994414495,0.5728,4383.7,4383.6,0.29804744]
[1756994414786,0.025,4383.8,4383.7,3.562178]
[1756994416170,0.025,4383.8,4383.7,1.281]
[1756994416379,0.025,4383.8,4383.7,0.7218]
[1756994416592,0.025,4383.8,4383.7,3.86022544]
[1756994417115,0.025,4383.8,4383.7,1.57904744]
[1756994417290,0.025,4383.8,4383.7,3.86022544]
[1756994418394,0.025,4383.8,4383.7,4.47437469]
[1756994418794,0.025,4383.8,4383.7,8.26637469]
[1756994420582,0.025,4383.8,4383.7,6.86022544]
[1756994420997,0.025,4383.8,4383.7,7.65222544]
[1756994422711,0.025,4383.8,4383.7,6.86022544]
[1756994422897,0.025,4383.8,4383.7,0.29804744]
[1756994423090,0.025,4383.8,4383.7,2.281178]
[1756994423393,0.025,4383.8,4383.7,3.30102544]
[1756994423598,0.025,4383.8,4383.2,5.28143457]
[1756994423795,0.025,4383.8,4383.7,0.29804744]
[1756994424279,0.1394,4383.8,4383.7,0.29804744]
[1756994424470,0.1394,4383.8,4383.7,2.57922544]
[1756994425189,0.025,4383.8,4383.7,3.00952544]
[1756994425391,0.025,4383.8,4383.7,0.29804744]
[1756994425694,0.025,4383.8,4382.7,0.4303]
[1756994425893,0.025,4383.8,4383.7,0.29804744]
[1756994425894,2.30612596,4383.8,4383.7,0.29804744]
[1756994426066,2.30612596,4383.8,4382.6,2.39610682]
[1756994426067,2.28121603,4383.7,4382.6,0.1144]
[1756994426394,2.2814296,4383.3,4382.3,4.3823]
[1756994426584,0.1144,4382.8,4382.7,0.29804744]
[1756994426894,0.1144,4382.8,4382.7,2.57974593]
[1756994427096,0.1144,4382.8,4382.7,0.29804744]
[1756994427792,0.1144,4382.8,4382.7,0.72834744]
[1756994427977,0.1144,4382.8,4382.7,3.01004593]
[1756994428172,0.1144,4382.8,4382.7,3.30154593]
[1756994428486,0.48391734,4383.8,4383.7,0.29804744]
[1756994428680,0.0252,4383.8,4383.7,0.29804744]
[1756994428881,0.1396,4383.8,4383.7,0.29804744]
[1756994429083,0.13777508,4383.8,4383.7,0.29804744]
[1756994429282,0.43487508,4383.8,4383.7,0.29804744]
[1756994429467,2.71600104,4383.8,4383.7,0.29804744]
[1756994429666,0.93457833,4383.8,4383.3,0.29804744]
[1756994429895,2.60160104,4383.8,4383.7,0.29804744]
[1756994430095,2.28148522,4383.2,4382.3,2.28188615]
[1756994430396,6.32650104,4383.8,4383.7,0.29804744]
[1756994430598,3.16526358,4383.8,4383.7,0.29804744]
[1756994430895,0.13777508,4383.8,4383.7,0.29804744]
[1756994431097,2.41890104,4383.8,4383.7,0.29804744]
[1756994431396,2.71600104,4383.8,4383.7,0.29804744]
[1756994431608,0.43487508,4383.8,4382.2,0.4304]
[1756994431769,0.43487508,4383.8,4383.6,0.29804744]
[1756994431770,1.75963553,4383.7,4383.6,0.29804744]
[1756994431970,0.1144,4382.7,4382.2,0.548]
[1756994432172,0.1144,4382.4,4381.9,0.4304]
[1756994432372,0.1144,4382.4,4381.1,2.28251881]
[1756994432373,2.39648651,4382.0,4380.8,0.548]
[1756994432569,0.1144,4382.0,4381.1,2.28252044]
[1756994432882,0.1144,4381.2,4381.1,2.58057922]
[1756994433188,0.23964126,4381.9,4381.5,0.29804744]
[1756994433189,0.1144,4381.6,4381.5,0.29804744]
[1756994433409,0.1144,4381.6,4381.5,3.87187084]
[1756994434095,1.681,4383.4,4382.9,0.29804744]
[1756994434402,3.96233412,4383.4,4383.3,0.29804744]
[1756994434600,4.60898883,4383.4,4383.3,0.29804744]
[1756994434814,4.72338883,4383.4,4383.3,0.29804744]
[1756994435200,0.02337508,4383.8,4383.7,2.57922544]
[1756994435405,0.02337508,4383.8,4383.7,0.29804744]
[1756994435868,0.02337508,4383.8,4383.7,3.00962544]
[1756994436071,0.02337508,4383.8,4383.7,0.29804744]
[1756994437075,0.02337508,4383.8,4383.7,3.32272544]
[1756994437298,0.02337508,4383.8,4383.7,3.87072544]
[1756994438408,0.02337508,4383.8,4383.7,8.2779232]
[1756994438573,0.02337508,4383.8,4383.7,7.18787576]
[1756994438772,0.02337508,4383.8,4383.7,7.4859232]
[1756994439202,0.02337508,4383.8,4383.7,7.18787576]
[1756994439414,0.02337508,4383.8,4383.2,4.028]
[1756994439616,0.02337508,4383.8,4383.7,0.61114744]
[1756994439908,0.02337508,4383.8,4383.7,2.89232544]
[1756994440251,0.02337508,4383.8,4383.7,3.87072544]
[1756994441818,0.02337508,4383.8,4383.7,11.68772544]
[1756994442129,0.02337508,4383.8,4383.7,13.2527248]
[1756994443791,0.001,4384.3,4384.2,2.57896528]
[1756994444007,0.001,4384.3,4384.2,6.59996528]
[1756994444214,0.001,4384.3,4384.2,8.68346528]
[1756994444732,0.001,4384.3,4384.2,11.68346528]
[1756994444915,0.001,4384.3,4384.2,12.11053139]
[1756994445232,0.001,4384.3,4384.2,12.22493139]
[1756994447603,0.001,4384.3,4384.2,7.90588395]
[1756994447914,0.001,4384.3,4384.2,11.43093139]
[1756994448312,0.001,4384.3,4384.2,12.22293139]
[1756994451617,0.0002,4384.3,4384.2,12.22293139]
[1756994451817,0.0002,4384.3,4384.2,11.79586528]
[1756994452332,0.0002,4384.3,4384.2,13.20355089]
[1756994454599,1e-08,4384.8,4384.2,10.92263305]
[1756994454834,1e-08,4384.8,4384.7,6.37070518]
[1756994455026,1e-08,4384.8,4384.7,10.49410518]
[1756994455337,1e-08,4384.8,4384.7,11.78560518]
[1756994456033,0.001,4386.3,4386.2,2.27987779]
[1756994456237,0.001,4386.3,4386.1,0.29804744]
[1756994456238,0.1136,4386.2,4386.1,0.29804744]
[1756994456532,0.3956,4386.2,4386.1,0.29804744]
[1756994457328,2.67547779,4386.2,4386.1,0.29804744]
[1756994457530,0.89132114,4386.2,4386.1,0.29804744]
[1756994457741,0.3956,4386.2,4386.1,0.29804744]
[1756994458326,0.1136,4386.2,4386.1,0.29804744]
[1756994458729,0.1136,4386.2,4386.1,2.57797721]
[1756994460039,0.1136,4386.2,4386.1,0.29804744]
[1756994460426,0.3956,4386.2,4386.1,0.29804744]
[1756994460835,0.1136,4386.2,4386.1,0.29804744]
[1756994461268,2.63302132,4386.2,4386.1,0.29804744]
[1756994461420,2.63302132,4386.2,4384.8,0.025]
[1756994461421,2.280029,4386.0,4384.8,0.025]
[1756994461621,0.1144,4384.9,4384.8,0.025]
[1756994461827,0.282,4385.9,4384.8,0.025]
[1756994462030,0.1144,4384.9,4384.8,2.30560572]
[1756994462564,0.23954353,4386.2,4384.9,2.28055371]
[1756994462725,0.1144,4385.5,4385.4,2.2802937]
[1756994463347,0.1144,4385.8,4385.4,0.4523]
[1756994463558,0.1144,4385.8,4385.7,2.28013772]
[1756994463976,0.1144,4385.8,4385.7,8.27330566]
[1756994464274,0.001,4386.3,4386.2,6.07187779]
[1756994464433,0.001,4386.3,4386.2,7.75187779]
[1756994464622,0.001,4386.3,4386.2,12.62417779]
[1756994464821,0.001,4386.3,4386.2,12.17397532]
[1756994465068,0.001,4386.3,4386.2,14.26557532]
[1756994465284,0.001,4386.3,4386.2,8.16397532]
[1756994465489,0.001,4386.3,4386.2,11.08247779]
[1756994465758,0.1146,4386.3,4386.2,7.96987779]
[1756994466049,0.1146,4386.3,4386.2,6.28987779]
[1756994466262,0.001,4386.3,4386.2,6.74217779]
[1756994466420,0.001,4386.3,4386.2,7.03957779]
[1756994466951,0.001,4386.3,4386.2,8.53279225]
[1756994467156,0.001,4386.3,4386.2,11.53279225]
[1756994467648,0.001,4386.3,4386.2,12.43839225]
[1756994468456,0.001,4386.3,4386.2,10.34479225]
[1756994468938,0.001,4386.3,4386.2,11.64439225]
[1756994469144,0.001,4386.3,4386.2,10.34479225]
[1756994469343,0.001,4386.3,4386.2,9.28787779]
[1756994469541,0.001,4386.3,4386.2,10.03757779]
[1756994469721,0.001,4386.3,4386.2,9.74017779]
[1756994469926,0.001,4386.3,4386.2,9.28787779]
[1756994470431,0.001,4386.3,4385.5,1.68]
[1756994470779,0.1136,4386.1,4385.5,2.28021386]
[1756994470934,0.001,4386.3,4386.2,3.07187779]
[1756994471141,0.001,4386.6,4386.5,2.27972187]
[1756994471469,0.001,4386.6,4386.5,6.31172187]
[1756994471836,0.001,4386.6,4386.5,4.032]
[1756994472053,0.001,4386.6,4386.5,6.31172187]
[1756994472433,0.001,4386.6,4386.5,4.032]
[1756994472632,0.001,4386.6,4385.4,1.68]
[1756994472633,2.27974847,4386.5,4385.4,1.68]
[1756994472854,2.53449632,4386.4,4385.3,6.31734188]
[1756994473053,2.27988689,4386.2,4385.3,0.004]
[1756994473259,2.279946,4386.1,4385.3,0.004]
[1756994473448,2.279946,4386.1,4385.3,2.28434289]
[1756994473646,19.62693879,4386.3,4385.4,2.28029154]
[1756994473849,1.98816536,4386.2,4385.3,0.004]
[1756994474159,0.001,4386.6,4385.5,3.0]
[1756994474366,0.001,4386.6,4386.0,2.27996716]
[1756994474568,2.28069167,4386.6,4385.5,3.0]
[1756994474735,2.28069167,4386.6,4385.8,2.28008545]
[1756994474933,0.001,4386.6,4385.7,2.28013042]
[1756994475133,0.1707,4386.5,4385.6,2.28018971]
[1756994475332,0.1707,4386.5,4385.8,2.28008357]
[1756994475568,0.001,4386.6,4386.5,2.27972187]
[1756994475868,0.001,4386.6,4386.5,6.30972187]
[1756994476038,0.001,4386.6,4386.5,10.60932187]
[1756994476640,0.001,4386.6,4386.5,11.40132187]
[1756994477040,0.0002,4386.6,4386.5,11.40132187]
[1756994477253,0.0002,4386.6,4386.5,12.93743406]
[1756994481075,0.0002,4386.6,4386.5,13.05103406]
[1756994481476,0.001,4386.9,4386.6,3.0]
[1756994481676,0.001,4386.9,4386.7,4.83679617]
[1756994481876,0.001,4386.9,4386.8,5.57696597]
[1756994482076,0.001,4386.9,4386.8,7.14871925]
[1756994484064,0.001,4386.9,4386.8,7.94071925]
[1756994484807,0.025,4388.8,4388.7,2.27857907]
[1756994484974,0.025,4388.8,4388.0,1.679]
[1756994485290,0.025,4388.8,4387.5,4.018]
[1756994485291,0.2616,4388.7,4387.5,4.018]
[1756994485598,0.1136,4387.8,4387.7,2.27909838]
[1756994486387,0.1136,4387.8,4387.7,6.29809838]
[1756994486700,0.1136,4387.8,4387.7,4.019]
[1756994487061,0.1136,4387.8,4387.6,4.017]
[1756994487266,0.2616,4388.1,4387.6,4.017]
[1756994487470,0.2616,4388.1,4387.0,1.7926]
[1756994487471,0.2616,4388.0,4387.5,2.27919782]
[1756994487804,0.48192213,4388.1,4387.4,2.27925422]
[1756994488108,0.1136,4387.5,4387.0,1.679]
[1756994488275,0.1136,4387.5,4386.6,0.0744]
[1756994488276,0.2616,4387.4,4386.7,1.899]
[1756994488471,0.1136,4386.9,4386.7,1.899]
[1756994488872,0.1136,4386.9,4386.8,0.025]
[1756994489266,0.1136,4386.9,4386.8,2.30456597]
[1756994489481,0.1136,4386.9,4386.8,0.025]
[1756994489715,0.1136,4386.9,4386.8,2.30456597]
[1756994490164,0.2616,4388.6,4386.8,3.72233381]
[1756994490363,0.2616,4388.6,4386.9,5.27949207]
[1756994490703,0.1136,4387.6,4387.0,4.012]
[1756994490878,0.1136,4387.1,4387.0,6.29142081]
[1756994491069,0.1136,4387.1,4386.8,1.704]
[1756994491518,0.1136,4387.1,4386.8,5.716]
[1756994491671,0.1136,4387.1,4386.9,2.27951371]
[1756994491872,0.1136,4387.1,4386.8,6.31655385]